bitfinex/quotes_SOLUSD_20240705
["timestamp","ask_amount","ask_price","bid_price","bid_amount"]
[1720207524433,0.8884564,135.64,135.6,16.5025]
[1720207527071,0.1,135.69,135.62,16.3325]
[1720207527376,0.1,135.69,135.63,20.17]
[1720207528152,0.1,135.69,135.64,6.1945]
[1720207528351,0.1,135.69,135.65,0.17]
[1720207529181,0.1,135.69,135.64,6.1945]
[1720207529984,7.3714,135.66,135.62,16.3325]
[1720207530189,7.3721,135.65,135.62,16.3325]
[1720207530355,7.372,135.65,135.6,6.0755]
[1720207530680,7.372,135.65,135.58,15.8943]
[1720207531179,26.69,135.68,135.58,15.8943]
[1720207531380,20.0,135.67,135.58,15.8943]
[1720207532258,20.0,135.68,135.59,0.17]
[1720207532451,27.3704,135.68,135.59,0.17]
[1720207532871,20.0,135.68,135.58,15.8943]
[1720207533077,7.372,135.65,135.58,15.8943]
[1720207533464,7.3714,135.66,135.58,15.8943]
[1720207533889,20.0,135.65,135.58,15.8943]
[1720207535366,20.0,135.66,135.58,15.8943]
[1720207536486,27.3714,135.66,135.58,15.8943]
[1720207537593,20.0,135.66,135.58,15.8943]
[1720207538686,0.1,135.69,135.6,6.289]
[1720207538878,7.4697,135.69,135.6,6.289]
[1720207540186,27.3704,135.68,135.6,6.289]
[1720207540577,20.0,135.68,135.6,6.289]
[1720207540989,20.0,135.68,135.61,16.6152]
[1720207541184,20.1,135.69,135.62,0.17]
[1720207541382,0.1,135.69,135.62,0.17]
[1720207542569,20.1,135.69,135.62,0.17]
[1720207542997,27.4698,135.69,135.62,0.17]
[1720207543293,20.1,135.69,135.61,16.6152]
[1720207543473,7.3709,135.67,135.61,16.6152]
[1720207543873,7.3704,135.68,135.61,16.6152]
[1720207544469,0.1,135.69,135.61,16.6152]
[1720207544889,0.1,135.69,135.62,0.17]
[1720207546889,0.1,135.69,135.61,16.6152]
[1720207547098,20.1,135.69,135.62,0.17]
[1720207547397,20.1,135.69,135.61,16.6152]
[1720207547577,20.1,135.69,135.62,0.17]
[1720207547779,0.1,135.69,135.61,16.6152]
[1720207548276,7.4697,135.69,135.61,16.6152]
[1720207550006,0.1,135.69,135.61,16.6152]
[1720207550216,27.4698,135.69,135.61,16.6152]
[1720207550872,20.1,135.69,135.61,16.6152]
[1720207551298,0.1,135.69,135.61,16.6152]
[1720207551507,7.4698,135.69,135.61,16.6152]
[1720207551672,0.1,135.69,135.61,16.6152]
[1720207555306,0.1,135.69,135.62,0.17]
[1720207556110,0.1,135.69,135.63,21.5531]
[1720207556417,0.1,135.69,135.64,0.17]
[1720207556621,0.1,135.69,135.63,21.5531]
[1720207556997,0.1,135.69,135.64,0.17]
[1720207557203,0.1,135.69,135.65,15.8147]
[1720207559011,0.1,135.69,135.66,0.17]
[1720207559726,0.1,135.69,135.67,6.2446]
[1720207561109,6.00231472,135.76,135.68,15.4075]
[1720207561313,7.70098085,135.77,135.68,15.4075]
[1720207561511,7.3665,135.75,135.68,15.4075]
[1720207562138,7.367,135.74,135.68,15.4075]
[1720207562418,1.4693513,135.76,135.68,15.4075]
[1720207562628,7.3675,135.74,135.68,15.4075]
[1720207562929,20.0,135.73,135.68,15.4075]
[1720207564349,20.0,135.74,135.68,15.4075]
[1720207564632,7.3669,135.75,135.68,15.4075]
[1720207564925,20.0,135.74,135.68,15.4075]
[1720207565127,21.6393513,135.76,135.68,15.4075]
[1720207565307,0.17,135.75,135.68,15.4075]
[1720207566114,21.4693513,135.76,135.68,15.4075]
[1720207566316,7.3664,135.75,135.68,15.4075]
[1720207566846,20.0,135.74,135.68,15.4075]
[1720207567046,28.8353513,135.76,135.68,15.4075]
[1720207567739,21.4693513,135.76,135.68,15.4075]
[1720207568234,1.4693513,135.76,135.68,15.4075]
[1720207568412,13.69549313,135.77,135.68,15.4075]
[1720207568814,13.69549313,135.77,135.69,0.17]
[1720207569742,20.0,135.76,135.68,15.4075]
[1720207569914,27.3662,135.76,135.68,15.4075]
[1720207570108,20.0,135.76,135.68,15.4075]
[1720207570809,20.0,135.76,135.69,0.17]
[1720207573749,20.0,135.76,135.68,15.4075]
[1720207574324,27.366,135.76,135.68,15.4075]
[1720207574527,7.3665,135.75,135.68,15.4075]
[1720207574938,27.3659,135.76,135.68,15.4075]
[1720207575750,7.3665,135.75,135.68,15.4075]
[1720207576043,27.366,135.76,135.68,15.4075]
[1720207577560,7.369,135.71,135.68,15.4075]
[1720207577846,13.29,135.7,135.68,15.4075]
[1720207579543,1.4693513,135.74,135.68,15.4075]
[1720207579729,7.70240713,135.75,135.68,28.6975]
[1720207579929,20.0,135.74,135.68,15.4075]
[1720207580238,7.3664,135.75,135.68,15.4075]
[1720207580426,20.0,135.74,135.68,15.4075]
[1720207581221,20.0,135.75,135.68,15.4075]
[1720207585848,9.33850859,135.78,135.68,15.4075]
[1720207586064,20.0,135.76,135.69,0.17]
[1720207586454,7.3671,135.74,135.68,15.4075]
[1720207586656,8.8359513,135.75,135.68,15.4075]
[1720207587756,20.0,135.74,135.68,15.4075]
[1720207589443,21.4693513,135.75,135.68,15.4075]
[1720207590164,1.4693513,135.75,135.68,15.4075]
[1720207591559,1.4693513,135.75,135.69,0.17]
[1720207593338,20.0,135.77,135.69,0.17]
[1720207594139,20.0,135.77,135.7,22.0279]
[1720207597353,20.0,135.77,135.71,0.17]
[1720207599557,19.5,135.77,135.71,0.17]
[1720207601375,19.5,135.77,135.72,16.5631]
[1720207601973,32.78,135.77,135.72,29.8431]
[1720207602174,13.28,135.74,135.72,16.5631]
[1720207602556,13.28,135.73,135.72,16.5631]
[1720207603465,13.28,135.74,135.72,16.5631]
[1720207603877,14.7493513,135.76,135.72,16.5631]
[1720207604185,33.28,135.75,135.72,16.5631]
[1720207605350,13.28,135.75,135.72,16.5631]
[1720207605572,14.7493513,135.76,135.72,16.5631]
[1720207606892,1.4693513,135.76,135.72,16.5631]
[1720207607189,34.7493513,135.76,135.72,16.5631]
[1720207608061,7.69074951,135.77,135.73,13.28]
[1720207608260,20.97074951,135.77,135.72,29.8431]
[1720207608467,13.28,135.76,135.72,16.5631]
[1720207608667,7.69074951,135.77,135.72,16.5631]
[1720207608668,13.28,135.75,135.72,16.5631]
[1720207609099,13.28,135.74,135.72,16.5631]
[1720207609299,13.28,135.75,135.72,16.5631]
[1720207612770,7.69074951,135.77,135.72,16.5631]
[1720207612967,13.28,135.75,135.72,16.5631]
[1720207613175,13.28,135.74,135.72,16.5631]
[1720207615600,13.28,135.75,135.72,16.5631]
[1720207616203,13.28,135.77,135.72,29.8431]
[1720207616523,14.1684564,135.78,135.73,13.28]
[1720207617725,0.8884564,135.78,135.74,13.28]
[1720207618503,14.1684564,135.78,135.73,13.28]
[1720207619729,0.8884564,135.78,135.74,13.28]
[1720207619914,0.8884564,135.78,135.76,16.037]
[1720207620308,14.1684564,135.78,135.76,16.037]
[1720207620495,0.8884564,135.78,135.68,21.6132]
[1720207620805,0.8884564,135.78,135.69,13.28]
[1720207621011,13.28,135.73,135.68,34.8932]
[1720207621231,13.28,135.72,135.68,21.6132]
[1720207621395,13.28,135.7,135.68,21.6132]
[1720207621730,13.28,135.7,135.68,15.3389]
[1720207622295,13.28,135.71,135.68,15.3389]
[1720207623433,13.28,135.72,135.68,15.3389]
[1720207623951,7.3665,135.75,135.68,15.3389]
[1720207624248,20.0,135.74,135.68,15.3389]
[1720207624408,27.367,135.74,135.68,15.3389]
[1720207624612,20.0,135.74,135.68,15.3389]
[1720207624813,20.0,135.76,135.68,15.3389]
[1720207625009,1.4693513,135.77,135.68,15.3389]
[1720207625316,1.4693513,135.77,135.69,6.3062]
[1720207625645,7.35423984,135.78,135.69,6.4762]
[1720207625943,0.8884564,135.78,135.7,15.4065]
[1720207626314,0.8884564,135.78,135.71,0.17]
[1720207627318,0.8884564,135.78,135.72,15.4065]
[1720207627518,0.8884564,135.78,135.73,0.17]
[1720207629326,0.8884564,135.78,135.72,21.5736]
[1720207630117,7.3659,135.76,135.72,21.5736]
[1720207630333,7.3679,135.73,135.69,15.3649]
[1720207630651,7.3676,135.73,135.69,15.3649]
[1720207630948,15.05598848,135.76,135.69,15.3649]
[1720207631168,20.0,135.75,135.69,15.3649]
[1720207631341,27.3666,135.75,135.69,15.3649]
[1720207631968,20.0,135.75,135.69,15.3649]
[1720207632340,29.01728463,135.77,135.69,15.3649]
[1720207632542,21.65148463,135.77,135.69,15.3649]
[1720207633047,7.3669,135.75,135.69,15.3649]
[1720207633373,20.0,135.74,135.69,15.3649]
[1720207633873,20.0,135.75,135.69,15.3649]
[1720207634786,21.48148463,135.77,135.69,15.3649]
[1720207635277,0.8884564,135.78,135.69,15.3649]
[1720207635567,0.8884564,135.78,135.7,0.17]
[1720207635747,27.4684564,135.78,135.69,15.3649]
[1720207636165,7.3654,135.77,135.69,15.3649]
[1720207637266,27.4684564,135.78,135.69,15.3649]
[1720207637480,20.0,135.77,135.69,15.3649]
[1720207638774,27.3654,135.77,135.69,15.3649]
[1720207639280,20.0,135.77,135.69,15.3649]
[1720207639582,0.8884564,135.78,135.72,15.1294]
[1720207639782,0.1,135.79,135.74,21.2972]
[1720207639974,0.1,135.79,135.75,20.17]
[1720207643179,20.0,135.85,135.76,15.8806]
[1720207643471,20.04378653,135.86,135.77,6.7636]
[1720207643678,0.04378653,135.86,135.77,6.7636]
[1720207643875,20.0,135.85,135.77,6.7636]
[1720207644067,0.04378653,135.86,135.78,15.8806]
[1720207644387,0.04378653,135.86,135.79,20.17]
[1720207645174,0.04378653,135.86,135.78,15.8806]
[1720207645962,20.04378653,135.86,135.78,15.8806]
[1720207646178,0.04378653,135.86,135.78,15.8806]
[1720207646384,0.04378653,135.86,135.79,0.17]
[1720207647268,20.04378653,135.86,135.79,0.17]
[1720207647979,0.04378653,135.86,135.79,0.17]
[1720207648967,0.04378653,135.86,135.8,21.9505]
[1720207649303,0.04378653,135.86,135.81,20.17]
[1720207649475,0.04378653,135.86,135.82,15.6807]
[1720207649830,0.04378653,135.86,135.84,6.2679]
[1720207650100,0.04378653,135.86,135.85,0.17]
[1720207650799,0.04378653,135.86,135.84,6.2679]
[1720207651401,0.04378653,135.86,135.85,0.17]
[1720207651781,0.04378653,135.86,135.84,6.2679]
[1720207652681,0.04378653,135.86,135.85,0.17]
[1720207652878,0.1,135.89,135.86,15.7224]
[1720207653699,0.1,135.89,135.87,0.17]
[1720207654205,0.1,135.89,135.86,15.7224]
[1720207657101,0.8884564,135.92,135.86,15.7224]
[1720207657102,0.8884564,135.92,135.87,6.5569]
[1720207657324,0.8884564,135.92,135.88,0.17]
[1720207658705,0.8884564,135.92,135.89,16.5006]
[1720207658909,0.8884564,135.92,135.9,0.17]
[1720207659505,0.1,135.99,135.91,6.1179]
[1720207659805,0.1,135.99,135.92,0.17]
[1720207660043,0.1,135.99,135.93,16.5006]
[1720207660383,0.1,135.99,135.94,0.17]
[1720207662385,0.1,135.99,135.93,16.5006]
[1720207664400,0.1,135.99,135.94,0.17]
[1720207665098,0.1,135.99,135.95,6.2491]
[1720207665292,0.1,135.99,135.96,0.17]
[1720207667422,0.1,135.99,135.95,6.2491]
[1720207667721,0.1,135.99,135.93,16.5006]
[1720207667896,7.4538,135.99,135.93,16.5006]
[1720207668320,0.1,135.99,135.93,16.5006]
[1720207668500,7.3541,135.98,135.93,16.5006]
[1720207668704,7.4536,135.99,135.93,16.5006]
[1720207669025,0.1,135.99,135.93,16.5006]
[1720207669201,27.4535,135.99,135.93,16.5006]
[1720207669523,20.1,135.99,135.93,16.5006]
[1720207669723,7.3543,135.98,135.93,16.5006]
[1720207670134,44.9659,135.98,135.89,16.6333]
[1720207670336,26.58,135.95,135.88,6.209]
[1720207670509,7.3563,135.94,135.88,6.209]
[1720207670709,20.0,135.93,135.88,6.209]
[1720207671226,20.0,135.94,135.88,6.209]
[1720207672235,27.3563,135.94,135.88,6.209]
[1720207672738,20.0,135.94,135.86,16.6333]
[1720207673032,7.358,135.91,135.86,16.6333]
[1720207673528,7.3572,135.93,135.86,16.6333]
[1720207673733,20.0,135.92,135.86,16.6333]
[1720207674299,27.3574,135.92,135.86,16.6333]
[1720207674500,20.0,135.92,135.86,16.6333]
[1720207674725,7.3574,135.92,135.86,16.6333]
[1720207674929,7.3568,135.93,135.86,16.6333]
[1720207675101,20.0,135.92,135.86,16.6333]
[1720207675833,20.0,135.95,135.86,16.6333]
[1720207676001,7.3563,135.94,135.86,16.6333]
[1720207676207,20.0,135.93,135.86,16.6333]
[1720207676404,20.0,135.95,135.86,16.6333]
[1720207676801,27.3557,135.95,135.86,16.6333]
[1720207677001,20.0,135.95,135.86,16.6333]
[1720207677217,7.3575,135.92,135.86,16.6333]
[1720207677411,0.17,135.94,135.86,16.6333]
[1720207678013,7.3563,135.94,135.86,16.6333]
[1720207678228,20.0,135.93,135.86,16.6333]
[1720207678735,20.0,135.95,135.87,0.17]
[1720207679220,20.0,135.97,135.87,0.17]
[1720207679625,7.3557,135.95,135.87,0.17]
[1720207679937,20.0,135.94,135.86,16.6333]
[1720207680238,7.357,135.93,135.86,16.6333]
[1720207680406,20.0,135.92,135.86,16.6333]
[1720207680606,7.3568,135.93,135.86,16.6333]
[1720207680915,20.0,135.92,135.86,16.6333]
[1720207681426,20.0,135.94,135.86,16.6333]
[1720207681930,20.0,135.94,135.87,0.17]
[1720207683311,20.0,135.94,135.86,16.6333]
[1720207683915,27.3565,135.94,135.86,16.6333]
[1720207684329,20.0,135.94,135.86,16.6333]
[1720207684533,0.1,135.99,135.9,15.5166]
[1720207684736,0.1,135.99,135.91,0.17]
[1720207685314,7.4534,135.99,135.9,15.5166]
[1720207685633,0.1,135.99,135.9,15.5166]
[1720207686016,26.58,135.96,135.87,15.6425]
[1720207686327,7.3573,135.92,135.87,15.6425]
[1720207687044,26.58,135.93,135.87,15.6425]
[1720207687360,20.0,135.92,135.87,15.6425]
[1720207687733,26.58,135.93,135.87,15.6425]
[1720207687919,7.3563,135.94,135.87,15.6425]
[1720207688130,20.0,135.93,135.87,15.6425]
[1720207688514,6.3353,135.98,135.87,15.6425]
[1720207688739,13.6898,135.98,135.87,15.6425]
[1720207688929,7.3545,135.98,135.87,15.6425]
[1720207689131,7.3545,135.97,135.87,15.6425]
[1720207689845,7.3541,135.98,135.88,0.17]
[1720207690943,7.3546,135.97,135.88,0.17]
[1720207691357,7.3541,135.98,135.88,0.17]
[1720207691529,20.0,135.97,135.88,0.17]
[1720207692130,20.0,135.98,135.88,0.17]
[1720207692335,0.1,135.99,135.89,6.4373]
[1720207692530,0.1,135.99,135.9,16.7352]
[1720207692858,0.1,135.99,135.92,21.3759]
[1720207693148,0.1,135.99,135.93,0.17]
[1720207698368,0.8884564,136.05,135.95,16.056]
[1720207698657,0.8884564,136.05,135.97,6.179]
[1720207698859,0.8884564,136.05,135.98,0.17]
[1720207699266,8.2386564,136.05,135.97,6.179]
[1720207699434,0.8884564,136.05,135.97,6.179]
[1720207700757,0.8884564,136.05,135.98,0.17]
[1720207701637,0.8884564,136.05,135.99,16.3901]
[1720207703151,0.8884564,136.05,136.0,0.17]
[1720207703339,0.8884564,136.05,136.01,6.2058]
[1720207704539,0.8884564,136.05,136.02,15.7366]
[1720207705638,0.8884564,136.05,136.03,0.17]
[1720207707167,0.1,136.09,136.03,0.17]
[1720207708249,0.1,136.09,136.04,21.6784]
[1720207708465,0.1,136.09,136.05,0.17]
[1720207710480,0.1,136.09,136.04,21.6784]
[1720207711287,0.1,136.09,136.04,15.6767]
[1720207711461,0.1,136.09,136.01,6.1735]
[1720207711777,7.3487,136.08,136.01,6.1735]
[1720207712774,7.3492,136.07,136.01,6.1735]
[1720207713473,7.3493,136.07,136.0,15.7475]
[1720207713689,7.3487,136.08,136.0,15.7475]
[1720207714196,0.1,136.09,136.0,15.7475]
[1720207714562,0.1,136.09,136.02,15.6181]
[1720207715392,0.1,136.09,136.03,0.17]
[1720207716676,0.1,136.09,136.02,15.6181]
[1720207718679,7.3487,136.08,136.02,15.6181]
[1720207718873,7.3492,136.07,136.02,15.6181]
[1720207719562,0.1,136.09,136.02,15.6181]
[1720207719781,7.349,136.08,136.02,15.6181]
[1720207719962,20.0,136.07,136.02,15.6181]
[1720207720887,27.3492,136.07,136.02,15.6181]
[1720207721259,20.0,136.07,136.02,15.6181]
[1720207721868,27.3494,136.07,136.02,15.6181]
[1720207722204,20.0,136.07,136.02,15.6181]
[1720207722371,0.1,136.09,136.02,15.6181]
[1720207722793,7.3493,136.07,136.02,15.6181]
[1720207723290,0.1,136.09,136.02,15.6181]
[1720207724605,7.4481,136.09,136.02,15.6181]
[1720207724782,20.0,136.08,136.02,15.6181]
[1720207725589,0.1,136.09,136.02,15.6181]
[1720207726492,7.4481,136.09,136.02,15.6181]
[1720207726687,20.0,136.08,136.02,15.6181]
[1720207727184,0.1,136.09,136.02,15.6181]
[1720207727770,7.3487,136.08,136.02,15.6181]
[1720207728177,7.4482,136.09,136.02,15.6181]
[1720207728372,0.1,136.09,136.02,15.6181]
[1720207728578,20.1,136.09,136.02,15.6181]
[1720207729098,7.3497,136.06,136.02,15.6181]
[1720207729275,20.1,136.09,136.01,6.4238]
[1720207729467,36.4247,136.09,135.99,15.9176]
[1720207729665,0.17,136.08,135.97,6.662]
[1720207729969,0.17,136.08,135.92,22.5524]
[1720207729970,7.3535,135.99,135.92,22.5524]
[1720207730405,7.3546,135.97,135.92,22.5524]
[1720207730690,7.354,135.98,135.92,22.5524]
[1720207732174,7.3534,136.0,135.92,22.5524]
[1720207732490,20.0,135.99,135.92,22.5524]
[1720207732691,27.3536,135.99,135.92,22.5524]
[1720207732997,27.3535,135.99,135.92,22.5524]
[1720207733691,20.0,135.99,135.92,22.5524]
[1720207734488,27.3536,135.99,135.92,22.5524]
[1720207735589,20.0,135.99,135.92,22.5524]
[1720207736576,7.354,135.98,135.92,22.5524]
[1720207737780,20.0,135.99,135.92,22.5524]
[1720207737984,7.353,136.0,135.92,22.5524]
[1720207738304,7.5629513,136.07,135.93,0.17]
[1720207738493,7.3507,136.05,135.93,20.17]
[1720207738795,7.3514,136.03,135.93,0.17]
[1720207739297,7.3519,136.02,135.92,22.5524]
[1720207739600,7.3514,136.03,135.92,22.5524]
[1720207739921,33.60797883,136.07,135.92,22.5524]
[1720207739922,7.3509,136.04,135.93,0.17]
[1720207740584,20.0,136.03,135.93,0.17]
[1720207740784,20.0,136.03,135.92,22.5524]
[1720207740985,7.3516,136.03,135.92,22.5524]
[1720207741191,20.0,136.06,135.92,22.5524]
[1720207741397,0.17,136.05,135.93,0.17]
[1720207741596,7.3506,136.05,135.93,0.17]
[1720207741778,20.0,136.04,135.93,0.17]
[1720207742294,20.0,136.06,135.92,22.5524]
[1720207742602,7.352,136.02,135.92,22.5524]
[1720207743204,2.9242749,136.05,135.92,22.5524]
[1720207743377,2.9242749,136.05,135.93,0.17]
[1720207743581,10.2745749,136.05,135.93,0.17]
[1720207743787,20.0,136.04,135.93,0.17]
[1720207743985,27.3509,136.04,135.93,0.17]
[1720207744180,20.0,136.04,135.94,21.3088]
[1720207744401,2.9242749,136.05,135.95,0.17]
[1720207745112,2.9242749,136.05,135.94,21.3088]
[1720207745408,7.3509,136.04,135.94,21.3088]
[1720207745711,2.9242749,136.05,135.94,21.3088]
[1720207745920,2.9242749,136.05,135.95,0.17]
[1720207746090,22.9242749,136.05,135.95,0.17]
[1720207746293,7.3508,136.04,135.95,0.17]
[1720207746802,10.2744749,136.05,135.95,0.17]
[1720207746992,20.0,136.04,135.95,0.17]
[1720207747903,2.9242749,136.05,135.95,0.17]
[1720207748804,10.2746749,136.05,135.95,0.17]
[1720207749009,20.0,136.04,135.95,0.17]
[1720207749818,20.0,136.05,135.96,16.5586]
[1720207750016,26.46,136.06,135.97,6.1974]
[1720207750221,26.46,136.06,135.98,16.5586]
[1720207750613,7.3526,136.01,135.95,15.1513]
[1720207750785,33.8119,136.02,135.95,15.1513]
[1720207751419,7.3524,136.01,135.95,15.1513]
[1720207751793,33.8119,136.02,135.95,15.1513]
[1720207753815,7.3514,136.03,135.95,15.1513]
[1720207754016,20.0,136.02,135.95,15.1513]
[1720207754602,20.0,136.03,135.95,15.1513]
[1720207754923,27.3512,136.04,135.95,15.1513]
[1720207755109,20.0,136.04,135.95,15.1513]
[1720207755424,7.3519,136.02,135.95,15.1513]
[1720207756105,18.5456,136.05,135.95,15.1513]
[1720207756308,20.0,136.04,135.95,15.1513]
[1720207756517,0.17,136.03,135.95,15.1513]
[1720207756910,7.353,136.0,135.95,15.1513]
[1720207757109,7.3545,135.97,135.94,6.2944]
[1720207757394,7.3541,135.98,135.92,16.2535]
[1720207757800,27.3536,135.99,135.92,16.2535]
[1720207758022,7.3543,135.98,135.92,16.2535]
[1720207758333,27.3546,135.97,135.92,16.2535]
[1720207758532,20.0,135.97,135.92,16.2535]
[1720207759033,20.0,135.98,135.92,16.2535]
[1720207759610,20.0,136.04,135.92,16.2535]
[1720207759923,7.353,136.0,135.92,16.2535]
[1720207760112,20.0,135.99,135.92,16.2535]
[1720207760722,27.3535,135.99,135.92,16.2535]
[1720207761440,7.3541,135.98,135.92,16.2535]
[1720207761624,27.3535,135.99,135.92,16.2535]
[1720207761832,7.354,135.98,135.92,16.2535]
[1720207762522,7.3547,135.97,135.92,16.2535]
[1720207763041,7.3541,135.98,135.92,16.2535]
[1720207764027,7.3545,135.97,135.92,16.2535]
[1720207764227,20.0,135.99,135.92,16.2535]
[1720207764431,20.0,136.0,135.92,16.2535]
[1720207764648,7.3535,135.99,135.92,16.2535]
[1720207764941,20.0,135.98,135.92,16.2535]
[1720207765510,18.3846,135.99,135.89,21.15127472]
[1720207765828,20.0,135.98,135.89,21.15127472]
[1720207766220,7.3556,135.95,135.89,21.15127472]
[1720207766635,7.3578,135.91,135.89,21.15127472]
[1720207766835,7.3574,135.92,135.89,21.15127472]
[1720207767518,7.3568,135.93,135.89,21.15127472]
[1720207767929,7.3573,135.92,135.89,21.15127472]
[1720207768135,20.0,135.94,135.89,21.15127472]
[1720207768338,7.3574,135.92,135.89,21.15127472]
[1720207768543,7.3578,135.91,135.89,5.75137472]
[1720207768747,7.3574,135.92,135.88,14.26163314]
[1720207768937,7.3569,135.93,135.88,14.26163314]
[1720207769759,7.3563,135.94,135.88,14.26163314]
[1720207769977,20.0,135.93,135.88,14.26163314]
[1720207770131,7.3561,135.94,135.88,14.26163314]
[1720207770336,20.0,135.93,135.88,14.26163314]
[1720207770745,7.3551,135.96,135.88,20.0270555]
[1720207771021,7.3551,135.96,135.89,16.6582]
[1720207771860,7.3547,135.97,135.89,16.6582]
[1720207772175,7.3556,135.95,135.89,16.6582]
[1720207772458,7.3552,135.96,135.89,16.6582]
[1720207772644,7.3547,135.97,135.89,16.6582]
[1720207772848,7.3551,135.96,135.89,16.6582]
[1720207773043,7.3557,135.95,135.89,16.6582]
[1720207773246,7.3551,135.96,135.89,16.6582]
[1720207773468,39.42348858,136.0,135.89,16.6582]
[1720207773642,7.3547,135.97,135.89,16.6582]
[1720207773849,20.0,135.96,135.89,16.6582]
[1720207774041,46.66,135.99,135.89,16.6582]
[1720207774042,7.3546,135.97,135.89,16.6582]
[1720207774239,20.0,135.96,135.89,16.6582]
[1720207775469,27.3544,135.98,135.89,16.6582]
[1720207775839,7.3545,135.97,135.89,16.6582]
[1720207776067,20.0,135.96,135.89,16.6582]
[1720207776753,20.0,135.97,135.89,16.6582]
[1720207778070,20.0,135.99,135.89,16.6582]
[1720207778252,0.17,135.98,135.89,16.6582]
[1720207778849,7.3551,135.97,135.89,16.6582]
[1720207779070,20.0,135.96,135.89,16.6582]
[1720207779276,7.3556,135.95,135.89,16.6582]
[1720207779563,7.3552,135.96,135.89,16.6582]
[1720207779870,7.3551,135.96,135.89,16.6582]
[1720207780974,7.3546,135.97,135.89,16.6582]
[1720207781273,20.0,135.96,135.89,16.6582]
[1720207783759,5.84538858,136.0,135.89,16.6582]
[1720207783954,7.3547,135.97,135.89,16.6582]
[1720207784266,7.3541,135.98,135.89,16.6582]
[1720207784470,20.0,135.97,135.89,16.6582]
[1720207786283,7.3569,135.93,135.89,16.6582]
[1720207786491,38.3871,135.97,135.89,16.6582]
[1720207786780,7.3572,135.92,135.89,16.6582]
[1720207786975,26.49,135.95,135.89,16.6582]
[1720207787175,7.3568,135.93,135.89,16.6582]
[1720207787681,7.3562,135.94,135.89,16.6582]
[1720207787867,7.3551,135.96,135.89,16.6582]
[1720207788175,27.3557,135.95,135.89,16.6582]
[1720207790059,7.3562,135.94,135.89,16.6582]
[1720207790758,27.3557,135.95,135.89,16.6582]
[1720207793388,7.3573,135.92,135.89,16.6582]
[1720207794093,7.3568,135.93,135.89,16.6582]
[1720207796771,7.3563,135.94,135.89,16.6582]
[1720207797772,53.8456,135.95,135.89,16.6582]
[1720207798201,20.0,135.95,135.89,16.6582]
[1720207800483,26.3556,135.95,135.89,16.6582]
[1720207802007,7.3524,136.01,135.92,15.0612]
[1720207802186,7.3526,136.01,135.92,15.0612]
[1720207802495,7.3535,135.99,135.92,15.0612]
[1720207803677,11.55987451,136.08,135.97,22.0889]
[1720207803894,0.1,136.09,135.97,22.0889]
[1720207804083,7.4484,136.09,135.98,0.17]
[1720207804506,7.4484,136.09,135.97,47.30219345]
[1720207804507,0.1,136.09,135.97,47.30219345]
[1720207804701,0.1,136.09,135.97,22.0889]
[1720207804902,7.3491,136.08,135.97,22.0889]
[1720207805105,0.1,136.09,135.97,22.0889]